bitfinex/quotes_BTCUSD_20240905
["timestamp","ask_amount","ask_price","bid_price","bid_amount"]
[1725529331522,0.38183618,56908.0,56907.0,0.98297042]
[1725529331787,0.39443618,56908.0,56907.0,0.98297042]
[1725529332014,0.40535802,56908.0,56907.0,0.99517042]
[1725529333367,0.40535802,56908.0,56907.0,1.18288138]
[1725529333591,0.40535802,56908.0,56907.0,1.18288416]
[1725529333827,0.39443618,56908.0,56907.0,1.18288416]
[1725529334279,0.40539888,56908.0,56907.0,1.18288416]
[1725529334506,0.40539888,56908.0,56907.0,4.10995316]
[1725529334733,0.39443618,56908.0,56907.0,3.80763546]
[1725529334944,0.39443618,56908.0,56907.0,3.23081446]
[1725529335245,0.39443618,56908.0,56907.0,1.94703546]
[1725529335703,0.39443618,56908.0,56907.0,1.23052746]
[1725529336825,0.39443618,56908.0,56907.0,1.23052517]
[1725529337496,0.39443618,56908.0,56907.0,1.38728579]
[1725529338393,0.39443618,56908.0,56907.0,1.23052517]
[1725529339543,0.39443618,56908.0,56907.0,1.46199203]
[1725529339961,0.39525018,56908.0,56907.0,1.46199203]
[1725529340402,0.208814,56908.0,56907.0,1.46199203]
[1725529340616,0.208814,56908.0,56907.0,1.23052517]
[1725529341035,0.21974756,56908.0,56907.0,1.23052517]
[1725529341456,0.02634756,56908.0,56907.0,1.23052517]
[1725529341903,0.015414,56908.0,56907.0,2.68740417]
[1725529342126,0.015414,56908.0,56907.0,2.84743717]
[1725529342584,0.015414,56908.0,56907.0,3.02316217]
[1725529343558,0.015414,56908.0,56907.0,3.37461217]
[1725529343774,0.015414,56908.0,56907.0,3.56310855]
[1725529343997,0.00456485,56908.0,56907.0,3.56310855]
[1725529344238,0.00456485,56908.0,56907.0,3.91455855]
[1725529344454,0.00456485,56908.0,56907.0,3.55090855]
[1725529344680,0.00456485,56908.0,56907.0,5.17330955]
[1725529344901,0.00456485,56908.0,56907.0,5.15930955]
[1725529345118,0.00456485,56908.0,56907.0,5.13293056]
[1725529345340,0.01656485,56908.0,56907.0,5.13393056]
[1725529345554,0.00456485,56908.0,56907.0,5.11893056]
[1725529345771,0.00456485,56908.0,56907.0,4.76748056]
[1725529345991,0.00456485,56908.0,56907.0,4.05174956]
[1725529346222,0.00456485,56908.0,56907.0,3.63495756]
[1725529346458,0.01656485,56908.0,56907.0,3.62195756]
[1725529346688,0.01656485,56908.0,56907.0,3.4488316]
[1725529346924,0.01656485,56908.0,56907.0,3.3450726]
[1725529347150,0.01656485,56908.0,56907.0,3.3186946]
[1725529347655,0.00081,56917.0,56907.0,3.3186946]
[1725529347656,1e-06,56917.0,56916.0,2.69838343]
[1725529347898,1e-06,56917.0,56916.0,3.11462456]
[1725529348122,1e-06,56917.0,56916.0,3.14460616]
[1725529348347,1e-06,56917.0,56916.0,3.76060569]
[1725529348564,1e-06,56917.0,56916.0,2.5129818]
[1725529348785,1e-06,56917.0,56916.0,3.03553616]
[1725529349004,1e-06,56917.0,56916.0,3.03653616]
[1725529349495,1e-06,56917.0,56916.0,2.33653616]
[1725529349688,1e-06,56917.0,56916.0,2.51223316]
[1725529349941,1e-06,56917.0,56916.0,2.51323316]
[1725529350856,1e-06,56917.0,56916.0,2.86462816]
[1725529351068,1e-06,56917.0,56916.0,2.85242816]
[1725529351499,1e-06,56917.0,56916.0,2.90210368]
[1725529351737,1e-06,56917.0,56916.0,3.31270368]
[1725529351961,1e-06,56917.0,56916.0,4.30319368]
[1725529352186,1e-06,56917.0,56916.0,4.29099368]
[1725529352642,1e-06,56917.0,56916.0,2.95832816]
[1725529352643,0.199501,56917.0,56916.0,2.95832816]
[1725529352872,1e-06,56917.0,56916.0,2.95732816]
[1725529353096,1e-06,56917.0,56916.0,2.09522945]
[1725529353317,1e-06,56917.0,56916.0,2.09722945]
[1725529353751,1e-06,56917.0,56916.0,2.44662445]
[1725529353970,1e-06,56917.0,56916.0,3.09159997]
[1725529355127,1e-06,56917.0,56916.0,3.10559997]
[1725529355616,0.001001,56917.0,56916.0,3.10759997]
[1725529355814,0.00019,56917.0,56916.0,4.10726358]
[1725529356033,0.00081,56919.0,56916.0,4.10726358]
[1725529356034,0.00081,56919.0,56918.0,0.984355]
[1725529356264,0.00081,56919.0,56918.0,8.34932551]
[1725529356482,0.00081,56919.0,56918.0,8.90609746]
[1725529356693,0.00081,56919.0,56918.0,10.40609746]
[1725529356911,0.00081,56919.0,56918.0,11.15869009]
[1725529357133,0.00081,56919.0,56918.0,11.11583645]
[1725529357358,0.00081,56919.0,56918.0,11.13231594]
[1725529357583,0.00081,56919.0,56918.0,11.15531594]
[1725529358521,0.00081,56919.0,56918.0,11.22562694]
[1725529358956,0.00081,56919.0,56918.0,11.22662694]
[1725529359400,0.00081,56919.0,56918.0,11.22762694]
[1725529359876,0.00081,56919.0,56918.0,11.22662694]
[1725529360132,0.00081,56919.0,56918.0,11.26290694]
[1725529361308,0.5842,56936.0,56935.0,0.38980143]
[1725529361546,0.5842,56936.0,56935.0,1.43317963]
[1725529361817,0.5842,56936.0,56935.0,1.44527963]
[1725529362303,0.5842,56936.0,56935.0,1.45547963]
[1725529362723,0.5842,56936.0,56935.0,1.45647963]
[1725529362942,0.00082,56944.0,56943.0,0.73980143]
[1725529363175,0.00082,56944.0,56943.0,1.95286087]
[1725529363390,0.00082,56944.0,56943.0,4.41061387]
[1725529363594,0.00082,56944.0,56943.0,4.10093887]
[1725529363806,0.37769747,56947.0,56946.0,0.05]
[1725529364018,0.37769747,56947.0,56946.0,0.06647949]
[1725529364454,0.1942,56947.0,56946.0,1.25305345]
[1725529364676,0.1942,56947.0,56946.0,1.52865745]
[1725529364891,0.1942,56947.0,56946.0,1.53885745]
[1725529365324,0.1942,56947.0,56946.0,1.36325345]
[1725529365538,0.1942,56947.0,56946.0,0.83653349]
[1725529365821,0.001,56947.0,56946.0,0.43398449]
[1725529366049,0.1945,56952.0,56951.0,0.73980143]
[1725529366238,0.1945,56952.0,56951.0,1.79337963]
[1725529367124,0.1978,56956.0,56955.0,0.73980143]
[1725529367334,0.1978,56956.0,56955.0,0.86648092]
[1725529368188,0.1778,56956.0,56955.0,0.86648092]
[1725529368425,0.1778,56956.0,56955.0,0.99735084]
[1725529368640,0.1798,56956.0,56955.0,0.99735084]
[1725529368850,0.1808,56956.0,56955.0,1.01135084]
[1725529369071,0.1788,56956.0,56955.0,1.01135084]
[1725529369486,0.1788,56956.0,56955.0,0.88048092]
[1725529369712,0.1818,56956.0,56955.0,0.88348092]
[1725529370144,0.1798,56956.0,56955.0,0.88348092]
[1725529370564,0.1798,56956.0,56955.0,0.88347781]
[1725529372364,0.1798,56956.0,56955.0,1.01434773]
[1725529372588,0.002,56956.0,56955.0,8.18235113]
[1725529372805,0.002,56956.0,56955.0,7.78152161]
[1725529373021,0.002,56956.0,56955.0,5.02159343]
[1725529373241,0.002,56956.0,56955.0,1.61352911]
[1725529373482,0.001,56956.0,56955.0,1.33392411]
[1725529373710,0.013,56956.0,56955.0,1.33492411]
[1725529373933,0.013,56956.0,56955.0,1.23828511]
[1725529374182,0.012,56956.0,56955.0,1.13642011]
[1725529374404,0.014,56956.0,56955.0,1.48850807]
[1725529374621,0.014,56956.0,56955.0,1.83966207]
[1725529374816,0.012,56956.0,56955.0,1.31193107]
[1725529375116,0.012,56956.0,56955.0,1.30945469]
[1725529375320,0.012,56956.0,56955.0,1.83618569]
[1725529375502,0.012,56956.0,56955.0,1.48503169]
[1725529375742,0.00021195,56958.0,56956.0,0.175574]
[1725529375953,0.00021195,56958.0,56957.0,0.33225041]
[1725529376169,0.00021195,56958.0,56957.0,2.61677371]
[1725529376604,0.00021195,56958.0,56957.0,2.64344773]
[1725529377052,0.00021195,56958.0,56957.0,2.48670828]
[1725529377283,0.00021195,56958.0,56957.0,2.46562128]
[1725529377523,0.00021195,56958.0,56957.0,2.47962128]
[1725529377764,0.00021195,56958.0,56957.0,2.49362128]
[1725529378005,0.00021195,56958.0,56957.0,2.66919228]
[1725529378260,0.00021195,56958.0,56957.0,2.65519228]
[1725529378491,0.00021195,56958.0,56957.0,2.7048678]
[1725529378724,0.00021195,56958.0,56957.0,3.0700098]
[1725529378965,0.00021195,56958.0,56957.0,2.7188678]
[1725529379197,0.00021195,56958.0,56957.0,2.7048678]
[1725529379452,0.00021195,56958.0,56957.0,3.0700098]
[1725529379880,0.00021195,56958.0,56957.0,2.7188678]
[1725529380172,0.00021195,56958.0,56957.0,3.0700098]
[1725529381112,0.00021195,56958.0,56957.0,3.08220955]
[1725529381421,0.12154387,56971.0,56970.0,0.78980143]
[1725529381673,0.33880504,56977.0,56976.0,0.73980143]
[1725529381896,0.33880504,56977.0,56976.0,1.61737391]
[1725529382129,0.33880504,56977.0,56976.0,1.71737391]
[1725529382329,0.03013,56982.0,56976.0,1.71737391]
[1725529382330,0.00013,56982.0,56978.0,0.05]
[1725529382625,0.00213,56982.0,56981.0,0.13054047]
[1725529382866,0.002,56981.0,56980.0,0.14701424]
[1725529383125,0.20751096,56981.0,56980.0,0.1]
[1725529383383,0.20751096,56981.0,56980.0,0.1102]
[1725529383621,0.20751096,56981.0,56976.0,1.61490014]
[1725529383622,0.032,56977.0,56976.0,1.61490014]
[1725529383919,0.44823581,56977.0,56976.0,1.61490014]
[1725529384393,0.47123581,56977.0,56976.0,1.61490014]
[1725529384647,0.47123581,56977.0,56971.0,0.05167524]
[1725529384648,0.032,56972.0,56971.0,0.06387524]
[1725529384872,0.58771096,56972.0,56971.0,0.41387524]
[1725529385116,0.3922,56971.0,56970.0,0.35]
[1725529385354,0.58771096,56971.0,56970.0,1.21109871]
[1725529386319,0.58771096,56971.0,56970.0,1.66209871]
[1725529386320,0.57771096,56971.0,56970.0,1.66209871]
[1725529386551,0.3922,56971.0,56970.0,1.71434281]
[1725529386777,0.3802,56971.0,56970.0,1.74043203]
[1725529387006,0.3822,56971.0,56970.0,1.74777248]
[1725529387239,0.3802,56971.0,56970.0,1.74777248]
[1725529387469,0.002,56972.0,56971.0,0.014]
[1725529387470,0.003,56972.0,56971.0,0.014]
[1725529387769,0.002,56972.0,56971.0,0.25964261]
[1725529387989,0.002,56972.0,56971.0,0.17167377]
[1725529389187,0.002,56972.0,56971.0,0.27611638]
[1725529389414,0.002,56972.0,56971.0,0.17167377]
[1725529390135,0.002,56972.0,56971.0,0.18567377]
[1725529390395,0.003,56972.0,56971.0,0.18667377]
[1725529390633,0.003,56972.0,56971.0,0.18667297]
[1725529391615,0.003,56972.0,56971.0,0.29111558]
[1725529391875,0.003,56972.0,56971.0,0.18667297]
[1725529392142,0.003,56972.0,56971.0,0.29128416]
[1725529392390,0.003,56972.0,56971.0,0.18667297]
[1725529392641,0.001,56972.0,56971.0,0.18667297]
[1725529393337,0.001,56972.0,56971.0,0.31747306]
[1725529393338,0.003,56972.0,56971.0,0.31747306]
[1725529393842,0.003,56972.0,56971.0,0.30100009]
[1725529394104,0.003,56972.0,56971.0,0.18667212]
[1725529394350,0.4132,56972.0,56971.0,0.18667212]
[1725529394583,0.58871096,56972.0,56971.0,0.18667212]
[1725529395079,0.175534,56969.0,56968.0,0.0122]
[1725529395308,0.763286,56966.0,56963.0,0.35]
[1725529395532,0.207552,56963.0,56962.0,0.86109871]
[1725529395777,0.58771096,56963.0,56962.0,0.91347737]
[1725529396011,0.76326296,56963.0,56962.0,0.91347737]
[1725529396243,0.195567,56958.0,56957.0,0.351626]
[1725529396505,0.82849585,56957.0,56956.0,0.06886475]
[1725529396725,0.022,56956.0,56955.0,0.3513]
[1725529396944,0.19751096,56956.0,56955.0,0.3513]
[1725529397161,0.22051096,56956.0,56955.0,0.3513]
[1725529397403,0.22051096,56956.0,56955.0,0.4392]
[1725529398297,0.032,56956.0,56955.0,0.49160626]
[1725529398510,0.033,56956.0,56955.0,0.5512]
[1725529398956,0.001,56956.0,56955.0,0.62343946]
[1725529399184,0.3812,56969.0,56955.0,0.62343946]
[1725529399402,0.3812,56969.0,56967.0,0.05240414]
[1725529399403,0.17551096,56969.0,56967.0,0.05240414]
[1725529399839,0.17551096,56969.0,56967.0,0.24030414]
[1725529400299,0.17551096,56969.0,56968.0,0.05240414]
[1725529400573,0.17551096,56969.0,56968.0,0.24030414]
[1725529401908,0.17551096,56969.0,56968.0,0.2019]
[1725529403291,0.17651096,56969.0,56968.0,0.2149]
[1725529403506,0.17651096,56969.0,56968.0,0.26735563]
[1725529404168,0.04090956,56971.0,56968.0,0.26735563]
[1725529405212,0.04090956,56971.0,56968.0,0.24035563]
[1725529405441,0.04090956,56971.0,56969.0,0.05245563]
[1725529405654,0.04090956,56971.0,56969.0,0.24035563]
[1725529405885,0.175507,56978.0,56970.0,0.05245563]
[1725529406131,0.37401996,56977.0,56970.0,0.15245563]
[1725529406373,0.37401996,56977.0,56971.0,0.05245563]
[1725529406604,0.37401996,56977.0,56971.0,0.15245563]
[1725529407283,0.041,56976.0,56972.0,0.05245563]
[1725529407496,0.17551096,56975.0,56972.0,0.15245563]
[1725529407714,0.17551096,56975.0,56972.0,0.17860621]
[1725529407943,0.17551096,56975.0,56973.0,0.07860621]
[1725529408182,0.29866336,56982.0,56974.0,0.07860621]
[1725529408183,0.00013,56982.0,56974.0,0.07860621]
[1725529408407,0.001,56977.0,56976.0,0.07873849]
[1725529408623,0.528536,56976.0,56975.0,0.1]
[1725529408830,0.528546,56975.0,56974.0,0.24041504]
[1725529409038,0.72705696,56975.0,56974.0,0.15251504]
[1725529409272,1.07808796,56975.0,56974.0,0.15251504]
[1725529409481,0.72705696,56975.0,56974.0,0.15251504]
[1725529409697,0.72705696,56975.0,56974.0,0.05251504]
[1725529409909,1.07808796,56975.0,56974.0,0.05251504]
[1725529410125,0.177518,56974.0,56973.0,0.15251504]
[1725529410336,0.35302896,56974.0,56973.0,0.15251504]
[1725529410825,0.17551096,56974.0,56973.0,0.15251504]
[1725529411041,0.001,56975.0,56973.0,0.20480828]
[1725529411256,0.17551096,56974.0,56973.0,0.1879]
[1725529411472,0.70206596,56974.0,56973.0,0.1879]
[1725529411690,1.11910296,56974.0,56973.0,0.0879]
[1725529411944,1.47013996,56974.0,56973.0,0.1019]
[1725529412985,1.47013996,56974.0,56973.0,0.2019]
[1725529413324,1.47113996,56974.0,56973.0,0.2159]
[1725529415278,1.48113996,56974.0,56973.0,0.2159]
[1725529415789,1.83217696,56974.0,56973.0,0.19638373]
[1725529416446,1.48113996,56974.0,56973.0,0.19638373]
[1725529417070,1.48195496,56974.0,56973.0,0.19638373]
[1725529417280,1.48195496,56974.0,56973.0,0.09638373]
[1725529417922,1.48095496,56974.0,56973.0,0.08238373]
[1725529418130,1.48095496,56974.0,56973.0,0.06838373]
[1725529418371,1.48195496,56974.0,56973.0,0.08238373]
[1725529418606,1.48195496,56974.0,56973.0,0.09638373]
[1725529418838,1.48195496,56974.0,56973.0,0.08238373]
[1725529419055,1.48195496,56974.0,56973.0,0.09638373]
[1725529419978,1.72085959,56974.0,56973.0,0.09638373]
[1725529420397,1.72085959,56974.0,56973.0,0.08835021]
[1725529421889,1.72085959,56974.0,56973.0,0.07435021]
[1725529422333,1.72085959,56974.0,56973.0,0.08835021]
[1725529422582,1.72085959,56974.0,56973.0,0.07435021]
[1725529422807,1.71985959,56974.0,56973.0,0.06035021]
[1725529423031,1.72085959,56974.0,56973.0,0.07235021]
[1725529423958,1.72085959,56974.0,56973.0,0.08635021]
[1725529425099,1.67785959,56974.0,56973.0,0.08635021]
[1725529425325,2.31882259,56974.0,56973.0,0.08635021]
[1725529427266,2.31682259,56974.0,56973.0,0.08635021]
[1725529427493,2.31882259,56974.0,56973.0,0.08635021]
[1725529427721,2.31682259,56974.0,56973.0,0.08635021]
[1725529429733,2.31882259,56974.0,56973.0,0.08635021]
[1725529430236,2.72085959,56974.0,56973.0,0.08635021]
[1725529431594,3.07189659,56974.0,56973.0,0.06991963]
[1725529431832,3.09189659,56974.0,56973.0,0.03295083]
[1725529432625,3.27689659,56974.0,56973.0,0.01652024]
[1725529432734,1.79672,56972.0,56971.0,0.00163]
[1725529432986,2.38727996,56972.0,56971.0,0.00163]
[1725529433950,2.38827996,56972.0,56971.0,0.01363]
[1725529434194,1.68618196,56972.0,56971.0,0.01363]
[1725529434455,1.74870346,56972.0,56971.0,0.01463]
[1725529434701,1.74870346,56972.0,56971.0,0.07889]
[1725529434702,1.92422746,56972.0,56971.0,0.07889]
[1725529434918,1.92322746,56972.0,56971.0,0.06589]
[1725529435139,1.92422746,56972.0,56971.0,0.07789]
[1725529435364,1.92522746,56972.0,56971.0,0.08689]
[1725529435816,1.92522746,56972.0,56971.0,0.06836936]
[1725529438142,1.92422746,56972.0,56971.0,0.05936936]
[1725529438365,1.92322746,56972.0,56971.0,0.04736936]
[1725529438661,1.92322746,56972.0,56971.0,0.66976936]
[1725529438662,0.62208046,56972.0,56971.0,0.66976936]
[1725529439007,0.94298859,56972.0,56971.0,0.15636936]
[1725529440405,0.59093959,56972.0,56971.0,0.15636936]
[1725529440860,0.59193959,56972.0,56971.0,0.05736936]
[1725529441091,0.43841559,56972.0,56971.0,0.04999936]
[1725529441313,0.43741559,56972.0,56971.0,0.06299936]
[1725529441584,0.43841559,56972.0,56971.0,0.06399936]
[1725529441807,0.43841559,56972.0,56971.0,0.04999936]
[1725529442047,0.43841559,56972.0,56971.0,0.06399936]
[1725529442759,0.43841559,56972.0,56971.0,0.11650154]
[1725529443000,0.43841559,56972.0,56971.0,0.16399936]
[1725529443232,0.43841559,56972.0,56971.0,0.21650154]
[1725529443708,0.43841559,56972.0,56971.0,0.16399936]
[1725529444412,0.17651096,56972.0,56971.0,0.16399936]
[1725529444659,0.17651096,56972.0,56971.0,0.24275264]
[1725529445660,0.17651096,56972.0,56971.0,0.84765264]
[1725529445888,0.17651096,56972.0,56971.0,0.76889936]
[1725529448508,0.17651096,56972.0,56971.0,0.90033279]
[1725529448752,0.17651096,56972.0,56971.0,0.76889936]
[1725529452364,0.17651096,56972.0,56971.0,0.77889936]
[1725529453067,0.17651096,56972.0,56971.0,0.79889936]
[1725529453524,0.17732596,56972.0,56971.0,0.79889936]
[1725529455935,0.17732596,56972.0,56971.0,0.78489936]
[1725529456178,0.17632596,56972.0,56971.0,0.78389936]
[1725529456403,0.17632596,56972.0,56971.0,0.94158792]
[1725529456622,0.17732596,56972.0,56971.0,0.79589936]
[1725529457111,0.000815,56972.0,56971.0,1.13389936]
[1725529457598,0.000815,56972.0,56971.0,1.14789936]
[1725529457599,0.001815,56972.0,56971.0,1.14789936]
[1725529457854,0.001815,56972.0,56971.0,1.16189936]
[1725529459167,0.001815,56972.0,56971.0,1.15989936]
[1725529459679,0.001815,56972.0,56971.0,1.13989936]
[1725529459680,0.17732596,56972.0,56971.0,1.13989936]
[1725529460189,0.17732596,56972.0,56971.0,1.27125582]
[1725529460442,0.17551096,56972.0,56971.0,1.13989936]
[1725529463782,0.17551096,56972.0,56971.0,1.24497922]
[1725529464788,0.17551096,56972.0,56971.0,1.13989936]
[1725529465562,0.23211126,56973.0,56971.0,1.13989936]
[1725529465563,0.12476226,56973.0,56971.0,1.13989936]
[1725529465806,0.12476226,56973.0,56972.0,0.20507552]
[1725529466026,0.12476226,56973.0,56972.0,0.21507552]
[1725529466964,0.12576226,56973.0,56972.0,0.21507552]
[1725529467465,0.12476226,56973.0,56972.0,0.21507552]
[1725529467703,0.12576226,56973.0,56972.0,0.61567552]
[1725529467923,0.12576226,56973.0,56972.0,0.60566738]
[1725529468158,0.12576226,56973.0,56972.0,0.5146]
[1725529468397,0.12576226,56973.0,56972.0,0.60566667]
[1725529468625,0.12576226,56973.0,56972.0,0.708]
[1725529469786,0.12476226,56973.0,56972.0,0.696]
[1725529470010,0.12476226,56973.0,56972.0,0.71]
[1725529470236,0.12576226,56973.0,56972.0,0.722]
[1725529470488,0.12576226,56973.0,56972.0,0.76934]
[1725529470776,0.12476226,56973.0,56972.0,0.74334]
[1725529470998,0.12576226,56973.0,56972.0,0.76934]
[1725529473458,0.12576226,56973.0,56972.0,0.81934]
[1725529474571,0.12576226,56973.0,56972.0,0.76934]
[1725529475859,0.12576226,56973.0,56972.0,0.75934]
[1725529476083,0.12576226,56973.0,56972.0,0.76934]
[1725529477654,0.12576226,56973.0,56972.0,0.77097]
[1725529478083,0.12657726,56973.0,56972.0,0.77097]
[1725529481244,0.30208822,56973.0,56972.0,0.08497]
[1725529481479,0.30208822,56973.0,56972.0,0.20634199]
[1725529481691,0.30208822,56973.0,56972.0,0.07497]
[1725529481925,0.30208822,56973.0,56972.0,0.18009718]
[1725529482139,0.30108822,56973.0,56972.0,0.16809718]
[1725529482350,0.30108822,56973.0,56972.0,0.06297]
[1725529482566,0.30208822,56973.0,56972.0,0.07497]
[1725529483006,0.30208822,56973.0,56972.0,0.18497]
[1725529483225,0.30208822,56973.0,56972.0,0.17097]
[1725529483437,0.30208822,56973.0,56972.0,0.30237894]
[1725529483647,0.30208822,56973.0,56972.0,0.31637894]
[1725529483864,0.32508822,56973.0,56972.0,0.18497]
[1725529484308,0.12657726,56973.0,56972.0,0.18497]
[1725529484542,0.12657726,56973.0,56972.0,0.77967]
[1725529487037,0.12657726,56973.0,56972.0,0.93736073]
[1725529488649,0.12657726,56973.0,56972.0,0.77967]
[1725529490714,0.12657726,56973.0,56972.0,0.79614463]
[1725529490960,0.12657726,56973.0,56972.0,0.79814463]
[1725529491178,0.12657726,56973.0,56972.0,0.79614463]
[1725529492547,0.12657726,56973.0,56972.0,0.79814463]
[1725529492732,0.12657726,56973.0,56972.0,0.79614463]
[1725529493520,0.12657726,56973.0,56972.0,0.79814463]
[1725529493958,0.12657726,56973.0,56972.0,0.78167]
[1725529494169,0.12657726,56973.0,56972.0,0.79814456]
[1725529494641,0.12657726,56973.0,56972.0,0.79614456]
[1725529494861,0.12657726,56973.0,56972.0,0.81261912]
[1725529495318,0.12657726,56973.0,56972.0,0.79614456]
[1725529497553,0.12657726,56973.0,56972.0,0.60214456]
[1725529497775,0.12657726,56973.0,56972.0,0.59214456]
[1725529497994,0.12657726,56973.0,56972.0,0.59214548]
[1725529498825,0.12557726,56973.0,56972.0,0.56614548]
[1725529499249,0.12657726,56973.0,56972.0,0.59214548]
[1725529499715,0.30108822,56973.0,56972.0,0.17944548]
[1725529499967,0.54060922,56973.0,56972.0,0.07944548]
[1725529500239,0.54060922,56973.0,56972.0,0.06297]
[1725529500240,1.24269522,56973.0,56972.0,0.06297]
[1725529500470,1.24269522,56973.0,56972.0,0.12797121]
[1725529500922,1.24269522,56973.0,56972.0,0.14197121]
[1725529501136,1.24269522,56973.0,56972.0,0.1279725]
[1725529501356,1.24269522,56973.0,56972.0,0.2279725]
[1725529501574,1.24269522,56973.0,56972.0,0.16297]
[1725529501774,1.24369522,56973.0,56972.0,0.25397149]
[1725529502013,1.24369522,56973.0,56972.0,0.17497]
[1725529502246,1.24369522,56973.0,56972.0,0.25397149]
[1725529502488,1.24369522,56973.0,56972.0,0.11563]
[1725529502489,1.24269522,56973.0,56972.0,0.11563]
[1725529502754,1.24369522,56973.0,56972.0,0.02763]
[1725529502939,1.24369522,56973.0,56972.0,0.12763]
[1725529504073,1.24369522,56973.0,56972.0,0.17342386]
[1725529504299,1.24369522,56973.0,56972.0,0.07342386]
[1725529504510,1.24369522,56973.0,56972.0,0.17342386]
[1725529505153,1.20269522,56973.0,56972.0,0.12079514]
[1725529505365,1.20269522,56973.0,56972.0,0.17342386]
[1725529505587,1.20269522,56973.0,56972.0,0.12079514]
[1725529506883,1.20269522,56973.0,56972.0,0.02079514]
[1725529507320,0.32508822,56973.0,56972.0,0.02079514]
[1725529507564,0.32508822,56973.0,56972.0,0.07342386]
[1725529507565,0.50060922,56973.0,56972.0,0.07342386]
[1725529507862,0.32508822,56973.0,56972.0,0.07342386]
[1725529508079,0.32508822,56973.0,56972.0,0.17342386]
[1725529508529,0.32508822,56973.0,56972.0,0.12079514]
[1725529508756,0.12657726,56973.0,56972.0,0.12079514]
[1725529509236,0.12657726,56973.0,56972.0,0.13079514]
[1725529510611,0.12657726,56973.0,56972.0,0.23597615]
[1725529511049,0.12657726,56973.0,56972.0,0.13079514]
[1725529512359,0.36548189,56973.0,56972.0,0.13079514]
[1725529513931,0.36548189,56973.0,56972.0,0.13242514]
[1725529514162,0.36548189,56973.0,56972.0,0.2639014]
[1725529514870,0.36548189,56973.0,56972.0,0.13242514]
[1725529515093,0.12657726,56973.0,56972.0,0.13242514]
[1725529515311,0.12657726,56973.0,56972.0,0.28037788]
[1725529516482,0.12657726,56973.0,56972.0,0.75470162]
[1725529516924,0.12657726,56973.0,56972.0,0.76470162]
[1725529517367,0.12657726,56973.0,56972.0,0.75470162]
[1725529518013,0.36548189,56973.0,56972.0,0.75470162]
[1725529518238,0.12657726,56973.0,56972.0,0.75470162]
[1725529520703,0.12657726,56973.0,56972.0,0.73822514]
[1725529520941,0.12657726,56973.0,56972.0,0.77470087]
[1725529524162,0.12557726,56973.0,56972.0,0.76270087]
[1725529524445,0.12557726,56973.0,56972.0,0.75390573]
[1725529525157,0.12557726,56973.0,56972.0,0.76490573]
[1725529525648,0.12557726,56973.0,56972.0,0.75390573]
[1725529525929,0.12557726,56973.0,56972.0,0.76790573]
[1725529526173,0.12557726,56973.0,56972.0,0.76490573]
[1725529526397,0.12557726,56973.0,56972.0,0.78090573]
[1725529527358,0.12557726,56973.0,56972.0,0.75590489]
[1725529527596,0.12557726,56973.0,56972.0,0.76990489]
[1725529527847,0.12557726,56973.0,56972.0,0.77990489]
[1725529530837,0.12557726,56973.0,56972.0,1.4300532]
[1725529531079,0.12557726,56973.0,56972.0,1.00487978]
[1725529531796,0.12557726,56973.0,56972.0,1.00487742]
[1725529532484,0.12557726,56973.0,56972.0,0.95541349]
[1725529534151,0.12557726,56973.0,56972.0,0.77990253]
[1725529534637,0.12557726,56973.0,56972.0,0.93558473]
[1725529534900,0.12557726,56973.0,56972.0,0.77790253]
[1725529535846,0.12557726,56973.0,56972.0,3.47065534]
[1725529536091,0.12557726,56973.0,56972.0,4.34465534]
[1725529537796,1.000815,56974.0,56973.0,0.032]
[1725529537797,0.84180326,56974.0,56973.0,0.032]
[1725529538027,0.84180326,56974.0,56973.0,1.69177124]
[1725529538258,0.84180326,56974.0,56973.0,1.86820271]
[1725529539201,0.84180326,56974.0,56973.0,1.89320271]
[1725529539659,0.84180326,56974.0,56973.0,1.87920271]
[1725529539926,0.84180326,56974.0,56973.0,1.89320271]
[1725529540191,0.84180326,56974.0,56973.0,6.81288493]
[1725529540680,0.84180326,56974.0,56973.0,6.81588493]
[1725529540916,0.84180326,56974.0,56973.0,6.82688493]
[1725529541426,0.84180326,56974.0,56973.0,6.81588493]
[1725529541642,0.84180326,56974.0,56973.0,6.81388493]
[1725529541862,0.84180326,56974.0,56973.0,6.82488493]
[1725529542764,0.54345181,56974.0,56973.0,6.82488493]
[1725529543190,0.54345181,56974.0,56973.0,5.96378622]
[1725529543853,0.54345181,56974.0,56973.0,6.01112622]
[1725529544689,0.54345181,56974.0,56973.0,6.01312622]
[1725529544894,0.54345181,56974.0,56973.0,6.01312606]
[1725529545791,0.54345181,56974.0,56973.0,9.80285376]
[1725529546003,0.54345181,56974.0,56973.0,6.23810095]
[1725529546438,0.54345181,56974.0,56973.0,6.39564468]
[1725529546658,0.54345181,56974.0,56973.0,9.94392495]
[1725529546880,0.54345181,56974.0,56973.0,7.09562841]
[1725529547117,1.6941,56975.0,56973.0,7.09562841]
[1725529547118,1.6941,56975.0,56974.0,1.58913263]
[1725529547335,1.6941,56975.0,56974.0,8.28120856]
[1725529547566,1.4941,56975.0,56974.0,8.64224556]
[1725529548481,1.4941,56975.0,56974.0,8.68958556]
[1725529549189,1.48201485,56975.0,56974.0,8.64012163]
[1725529549417,1.48201485,56975.0,56974.0,5.48745893]
[1725529549632,1.48201485,56975.0,56974.0,5.70322693]
[1725529549851,1.48201485,56975.0,56974.0,5.75472062]
[1725529551365,1.48201485,56975.0,56974.0,5.73825024]
[1725529551599,1.48201485,56975.0,56974.0,5.76571805]
[1725529552528,1.48201485,56975.0,56974.0,5.26565634]
[1725529555423,1.48201485,56975.0,56974.0,5.98765634]
[1725529555642,1.48201485,56975.0,56974.0,6.0381716]
[1725529555863,1.48201485,56975.0,56974.0,5.3361716]
[1725529556590,1.48201485,56975.0,56974.0,5.28565634]
[1725529557151,1.48201485,56975.0,56974.0,5.33625357]
[1725529557800,1.17671029,56975.0,56974.0,7.44725356]
[1725529558233,1.17671029,56975.0,56974.0,7.44925356]
[1725529559352,1.17671029,56975.0,56974.0,7.44725356]
[1725529559597,1.17671029,56975.0,56974.0,7.43078575]
[1725529559810,1.17671029,56975.0,56974.0,8.13625246]
[1725529560020,1.17671029,56975.0,56974.0,8.14071917]
[1725529560232,1.17671029,56975.0,56974.0,8.13525246]
[1725529560427,1.17671029,56975.0,56974.0,8.14925246]
[1725529560949,1.17671029,56975.0,56974.0,6.88468889]
[1725529561212,1.17671029,56975.0,56974.0,1.93131767]
[1725529561412,1.17752529,56975.0,56974.0,0.80524]
[1725529562057,1.17752529,56975.0,56974.0,0.85524]
[1725529562277,1.17752529,56975.0,56974.0,0.8980625]
[1725529562692,1.17752529,56975.0,56974.0,0.8840625]
[1725529562908,1.17752529,56975.0,56974.0,0.8820625]